[Event "Live Chess"]
[Site "Chess.com"]
[Date "2023.05.20"]
[Round "-"]
[White "RedRook90"]
[Black "YrrriKharkiv"]
[Result "0-1"]
[WhiteElo "1962"]
[BlackElo "2156"]
[TimeControl "300"]
[EndTime "9:40:33 PDT"]
[Termination "YrrriKharkiv won by resignation"]

1. c4 {[%clk 0:04:58.2]} 1... Nf6 {[%clk 0:04:53.9]} 2. g3 {[%clk 0:04:57.5]}
2... e6 {[%clk 0:04:52.9]} 3. Bg2 {[%clk 0:04:56.9]} 3... d5 {[%clk 0:04:52.4]}
4. cxd5 {[%clk 0:04:56.6]} 4... exd5 {[%clk 0:04:51.4]} 5. Nf3 {[%clk
0:04:56.5]} 5... c6 {[%clk 0:04:50.7]} 6. O-O {[%clk 0:04:56.2]} 6... Bd6 {[%clk
0:04:49.6]} 7. d4 {[%clk 0:04:55.8]} 7... Nbd7 {[%clk 0:04:48.2]} 8. Nc3 {[%clk
0:04:55.4]} 8... O-O {[%clk 0:04:46.8]} 9. Bg5 {[%clk 0:04:54.3]} 9... Re8
{[%clk 0:04:45.8]} 10. e3 {[%clk 0:04:53.5]} 10... h6 {[%clk 0:04:44.9]} 11.
Bxf6 {[%clk 0:04:52.5]} 11... Nxf6 {[%clk 0:04:43.6]} 12. Qc2 {[%clk 0:04:51.2]}
12... Bg4 {[%clk 0:04:42.2]} 13. Na4 {[%clk 0:04:45.8]} 13... Ne4 {[%clk
0:04:37.5]} 14. a3 {[%clk 0:04:38.6]} 14... Bf5 {[%clk 0:04:30.9]} 15. Qc1
{[%clk 0:04:33.1]} 15... Qd7 {[%clk 0:04:24.1]} 16. b4 {[%clk 0:04:30.2]} 16...
b6 {[%clk 0:04:19.2]} 17. Nb2 {[%clk 0:04:11.4]} 17... Rac8 {[%clk 0:04:15.6]}
18. Nh4 {[%clk 0:03:51.3]} 18... Bh3 {[%clk 0:04:04.3]} 19. Nd3 {[%clk
0:03:41.1]} 19... Ng5 {[%clk 0:03:57.6]} 20. Qd1 {[%clk 0:03:20.2]} 20... Bg4
{[%clk 0:03:35.5]} 21. Qc2 {[%clk 0:02:43.6]} 21... Bh3 {[%clk 0:03:27.3]} 22.
Qd1 {[%clk 0:02:38.4]} 22... Ne4 {[%clk 0:03:17.4]} 23. Nf3 {[%clk 0:02:08.2]}
23... f6 {[%clk 0:03:08.4]} 24. Rc1 {[%clk 0:02:04.3]} 24... Bg4 {[%clk
0:02:57.2]} 25. Qc2 {[%clk 0:02:01.6]} 25... Ng5 {[%clk 0:02:47.8]} 26. Nf4
{[%clk 0:01:50.3]} 26... Nxf3+ {[%clk 0:02:37.4]} 27. Bxf3 {[%clk 0:01:21.1]}
27... Bxf3 {[%clk 0:02:36]} 28. Ng2 {[%clk 0:01:18]} 28... Qh3 {[%clk 0:02:20]}
29. Ne1 {[%clk 0:01:14.7]} 29... Be4 {[%clk 0:02:15.5]} 30. Qe2 {[%clk
0:01:13.5]} 30... Qe6 {[%clk 0:02:09.8]} 31. f3 {[%clk 0:01:11.1]} 31... Bg6
{[%clk 0:02:07.8]} 32. Ng2 {[%clk 0:01:09.7]} 32... Bf5 {[%clk 0:02:05.6]} 33.
Rfe1 {[%clk 0:01:08]} 33... Bh3 {[%clk 0:02:03.7]} 34. Rc3 {[%clk 0:01:07.7]}
34... Bxg2 {[%clk 0:02:02.6]} 35. Kxg2 {[%clk 0:01:07.6]} 35... h5 {[%clk
0:02:00.5]} 36. h4 {[%clk 0:01:06.4]} 36... Qf5 {[%clk 0:01:58.3]} 37. e4 {[%clk
0:01:02]} 37... dxe4 {[%clk 0:01:54.9]} 38. fxe4 {[%clk 0:01:01.9]} 38... Qg4
{[%clk 0:01:53]} 39. Re3 {[%clk 0:00:59.4]} 39... Qxe2+ {[%clk 0:01:51.8]} 40.
R1xe2 {[%clk 0:00:58.2]} 40... Re7 {[%clk 0:01:49.1]} 41. Kf3 {[%clk 0:00:57.8]}
41... Rce8 {[%clk 0:01:47.5]} 42. Re1 {[%clk 0:00:55.2]} 42... c5 {[%clk
0:01:44.6]} 43. bxc5 {[%clk 0:00:53.5]} 43... bxc5 {[%clk 0:01:43.7]} 44. dxc5
{[%clk 0:00:52.5]} 44... Bxc5 {[%clk 0:01:42.6]} 45. R3e2 {[%clk 0:00:52.4]}
45... Bxa3 {[%clk 0:01:41.4]} 46. Ra2 {[%clk 0:00:51.5]} 46... Bc5 {[%clk
0:01:40.9]} 47. Ra5 {[%clk 0:00:50.9]} 47... Bb6 {[%clk 0:01:40]} 48. Rb5 {[%clk
0:00:50.3]} 48... g6 {[%clk 0:01:38.5]} 49. Rb3 {[%clk 0:00:49.4]} 49... Kf7
{[%clk 0:01:37.8]} 50. Rd3 {[%clk 0:00:48.2]} 50... f5 {[%clk 0:01:36.3]} 51.
Rd5 {[%clk 0:00:43.2]} 51... Rxe4 {[%clk 0:01:34.1]} 52. Rxe4 {[%clk 0:00:42.1]}
52... Rxe4 {[%clk 0:01:33.8]} 0-1

[Event "Live Chess"]
[Site "Chess.com"]
[Date "2023.05.20"]
[Round "-"]
[White "SimpleHarmonic1"]
[Black "MizYanKo"]
[Result "1-0"]
[WhiteElo "2076"]
[BlackElo "564"]
[TimeControl "300"]
[EndTime "9:40:33 PDT"]
[Termination "SimpleHarmonic1 won by checkmate"]

1. d4 {[%clk 0:04:55.3]} 1... d5 {[%clk 0:04:59.9]} 2. c4 {[%clk 0:04:53.7]}
2... Qd6 {[%clk 0:04:58.1]} 3. Nc3 {[%clk 0:04:50.6]} 3... Qf6 {[%clk
0:04:48.8]} 4. Nf3 {[%clk 0:04:47.5]} 4... e5 {[%clk 0:04:45.5]} 5. Nxd5 {[%clk
0:04:46.1]} 5... exd4 {[%clk 0:04:43.9]} 6. Nxc7+ {[%clk 0:04:40.3]} 6... Kd7
{[%clk 0:04:03.8]} 7. Nxa8 {[%clk 0:04:33.2]} 7... Kc6 {[%clk 0:03:59.1]} 8.
Nxd4+ {[%clk 0:04:30.9]} 8... Kc5 {[%clk 0:03:47.1]} 9. Nb3+ {[%clk 0:04:25.4]}
9... Kxc4 {[%clk 0:03:44.3]} 10. Qd3+ {[%clk 0:04:21]} 10... Kb4 {[%clk
0:03:40.5]} 11. Bd2+ {[%clk 0:04:20.6]} 11... Ka4 {[%clk 0:03:38.9]} 12. Nc5+
{[%clk 0:04:05.1]} 12... Bxc5 {[%clk 0:03:21.7]} 13. Qb3# {[%clk 0:04:03.5]} 1-0

[Event "Live Chess"]
[Site "Chess.com"]
[Date "2023.05.20"]
[Round "-"]
[White "1600x"]
[Black "Alan_Richardson"]
[Result "0-1"]
[WhiteElo "1303"]
[BlackElo "1660"]
[TimeControl "300"]
[EndTime "9:40:36 PDT"]
[Termination "Alan_Richardson won by checkmate"]

1. e4 {[%clk 0:04:56.8]} 1... c5 {[%clk 0:04:58.1]} 2. Qe2 {[%clk 0:04:28.6]}
2... Nc6 {[%clk 0:04:56.2]} 3. Nf3 {[%clk 0:04:27.1]} 3... g6 {[%clk 0:04:52.9]}
4. Nc3 {[%clk 0:04:26.1]} 4... Bg7 {[%clk 0:04:51.7]} 5. b3 {[%clk 0:04:24.9]}
5... d6 {[%clk 0:04:48.9]} 6. Bb2 {[%clk 0:04:23.3]} 6... Bg4 {[%clk 0:04:47.4]}
7. h3 {[%clk 0:04:21.8]} 7... Nd4 {[%clk 0:04:45.4]} 8. Qd3 {[%clk 0:04:20.2]}
8... Bxf3 {[%clk 0:04:36.6]} 9. gxf3 {[%clk 0:04:19.2]} 9... Nf6 {[%clk
0:04:32.5]} 10. f4 {[%clk 0:04:17.9]} 10... O-O {[%clk 0:04:29.2]} 11. O-O-O
{[%clk 0:04:15.8]} 11... Nh5 {[%clk 0:04:27.4]} 12. e5 {[%clk 0:04:12.4]} 12...
Nxf4 {[%clk 0:04:23.7]} 13. Qe4 {[%clk 0:04:11.1]} 13... Bxe5 {[%clk 0:04:13.3]}
14. Bc4 {[%clk 0:04:07.7]} 14... a6 {[%clk 0:04:01.6]} 15. Nd5 {[%clk
0:04:05.3]} 15... b5 {[%clk 0:04:00]} 16. Nxf4 {[%clk 0:04:01.4]} 16... bxc4
{[%clk 0:03:58.9]} 17. Bxd4 {[%clk 0:03:59.9]} 17... cxd4 {[%clk 0:03:49.6]} 18.
Qf3 {[%clk 0:03:58.1]} 18... Qa5 {[%clk 0:03:44.6]} 19. bxc4 {[%clk 0:03:52.2]}
19... Qxa2 {[%clk 0:03:35.6]} 20. Qb3 {[%clk 0:03:49.7]} 20... Qxb3 {[%clk
0:03:27.8]} 21. cxb3 {[%clk 0:03:48]} 21... Bxf4 {[%clk 0:03:27.4]} 22. Kc2
{[%clk 0:03:46.5]} 22... Rfb8 {[%clk 0:03:22.6]} 23. Ra1 {[%clk 0:03:44.8]}
23... Rb6 {[%clk 0:03:19.6]} 24. h4 {[%clk 0:03:42.5]} 24... Rab8 {[%clk
0:03:18.1]} 25. Ra3 {[%clk 0:03:40.6]} 25... h5 {[%clk 0:03:14]} 26. d3 {[%clk
0:03:39]} 26... e5 {[%clk 0:03:09.1]} 27. Rb1 {[%clk 0:03:36.9]} 27... Kg7
{[%clk 0:02:59.6]} 28. f3 {[%clk 0:03:33.3]} 28... Kf6 {[%clk 0:02:56.1]} 29. b4
{[%clk 0:03:18.4]} 29... Rxb4 {[%clk 0:02:52.1]} 30. Rxb4 {[%clk 0:03:16.2]}
30... Rxb4 {[%clk 0:02:50.8]} 31. Rxa6 {[%clk 0:03:14.8]} 31... Ke6 {[%clk
0:02:49.6]} 32. c5 {[%clk 0:03:13.6]} 32... e4 {[%clk 0:02:33.5]} 33. fxe4
{[%clk 0:02:57.1]} 33... f5 {[%clk 0:02:31.4]} 34. exf5+ {[%clk 0:02:55.5]}
34... gxf5 {[%clk 0:02:29.4]} 35. c6 {[%clk 0:02:53.9]} 35... d5 {[%clk
0:02:20.4]} 36. c7+ {[%clk 0:02:52.9]} 36... Kd7 {[%clk 0:02:19.2]} 37. Rf6
{[%clk 0:02:50.4]} 37... Rb7 {[%clk 0:02:01.4]} 38. c8=Q+ {[%clk 0:02:44.3]}
38... Kxc8 {[%clk 0:01:59.3]} 39. Rf8+ {[%clk 0:02:38.7]} 39... Kc7 {[%clk
0:01:54]} 40. Kd1 {[%clk 0:02:36.6]} 40... Kc6 {[%clk 0:01:46.6]} 41. Rf6+
{[%clk 0:02:18.1]} 41... Kc5 {[%clk 0:01:42.9]} 42. Ke2 {[%clk 0:02:11.3]} 42...
Bg3 {[%clk 0:01:32.8]} 43. Kf3 {[%clk 0:02:08.5]} 43... Bxh4 {[%clk 0:01:31.4]}
44. Rxf5 {[%clk 0:01:54.1]} 44... Rh7 {[%clk 0:01:29.7]} 45. Kg2 {[%clk
0:01:52.6]} 45... Be1 {[%clk 0:01:27]} 46. Kh2 {[%clk 0:01:51.1]} 46... h4
{[%clk 0:01:24.9]} 47. Kg2 {[%clk 0:01:49.8]} 47... h3+ {[%clk 0:01:23.4]} 48.
Kh2 {[%clk 0:01:47.6]} 48... Bg3+ {[%clk 0:01:18.5]} 49. Kxg3 {[%clk 0:01:45.1]}
49... h2 {[%clk 0:01:17.8]} 50. Rf1 {[%clk 0:01:42.7]} 50... h1=Q {[%clk
0:01:16]} 51. Rxh1 {[%clk 0:01:41.4]} 51... Rxh1 {[%clk 0:01:14.7]} 52. Kg2
{[%clk 0:01:40.5]} 52... Rd1 {[%clk 0:01:13.3]} 53. Kf3 {[%clk 0:01:38.5]} 53...
Rxd3+ {[%clk 0:01:12.4]} 54. Ke2 {[%clk 0:01:37.9]} 54... Re3+ {[%clk
0:01:11.1]} 55. Kd2 {[%clk 0:01:36.1]} 55... Rh3 {[%clk 0:01:09.9]} 56. Ke2
{[%clk 0:01:35.4]} 56... Kc4 {[%clk 0:01:09.2]} 57. Kd2 {[%clk 0:01:35]} 57...
d3 {[%clk 0:01:08.2]} 58. Kd1 {[%clk 0:01:33]} 58... Rh2 {[%clk 0:01:07.5]} 59.
Ke1 {[%clk 0:01:31.3]} 59... Kc3 {[%clk 0:01:06.9]} 60. Kd1 {[%clk 0:01:30.4]}
60... Rh1# {[%clk 0:01:04.9]} 0-1

[Event "Live Chess"]
[Site "Chess.com"]
[Date "2023.05.20"]
[Round "-"]
[White "chrisbradgate"]
[Black "toog"]
[Result "0-1"]
[WhiteElo "830"]
[BlackElo "2635"]
[TimeControl "300"]
[EndTime "9:40:36 PDT"]
[Termination "toog won by checkmate"]

1. d4 {[%clk 0:04:58.5]} 1... Nf6 {[%clk 0:04:58.6]} 2. Bf4 {[%clk 0:04:56.1]}
2... e6 {[%clk 0:04:56.6]} 3. e3 {[%clk 0:04:53.9]} 3... b6 {[%clk 0:04:55.9]}
4. c3 {[%clk 0:04:51.6]} 4... Bb7 {[%clk 0:04:55.3]} 5. Nf3 {[%clk 0:04:43.8]}
5... Be7 {[%clk 0:04:53.9]} 6. Bd3 {[%clk 0:04:41.7]} 6... O-O {[%clk
0:04:53.1]} 7. O-O {[%clk 0:04:40.7]} 7... d6 {[%clk 0:04:51.7]} 8. Nbd2 {[%clk
0:04:39.6]} 8... Nbd7 {[%clk 0:04:48.9]} 9. Re1 {[%clk 0:04:34.1]} 9... Re8
{[%clk 0:04:46.4]} 10. h3 {[%clk 0:04:32.8]} 10... Bf8 {[%clk 0:04:40.2]} 11. e4
{[%clk 0:04:06.9]} 11... e5 {[%clk 0:04:39.1]} 12. dxe5 {[%clk 0:04:01.5]} 12...
dxe5 {[%clk 0:04:39]} 13. Bg3 {[%clk 0:03:55]} 13... Nh5 {[%clk 0:04:36.6]} 14.
Bh4 {[%clk 0:03:44.1]} 14... Be7 {[%clk 0:04:33.3]} 15. Bxe7 {[%clk 0:03:38.8]}
15... Qxe7 {[%clk 0:04:33.2]} 16. Qc2 {[%clk 0:03:19.8]} 16... Rad8 {[%clk
0:04:30.7]} 17. Re2 {[%clk 0:03:17.5]} 17... Nf4 {[%clk 0:04:29]} 18. Re3 {[%clk
0:03:04.5]} 18... Nc5 {[%clk 0:04:27.2]} 19. Ne1 {[%clk 0:02:49.5]} 19... Qf6
{[%clk 0:04:22.8]} 20. Rd1 {[%clk 0:02:35.3]} 20... Qg6 {[%clk 0:04:19.9]} 21.
Rg3 {[%clk 0:02:27.4]} 21... Qh5 {[%clk 0:04:18.7]} 22. Bb5 {[%clk 0:02:01.7]}
22... c6 {[%clk 0:04:12.1]} 23. Be2 {[%clk 0:01:53.6]} 23... Nxe2+ {[%clk
0:04:07.1]} 24. Kh2 {[%clk 0:01:47]} 24... Nxg3 {[%clk 0:04:07]} 25. fxg3 {[%clk
0:01:45.3]} 25... Nxe4 {[%clk 0:04:05.2]} 26. Nxe4 {[%clk 0:01:43.2]} 26... Qxd1
{[%clk 0:04:03.1]} 27. Qxd1 {[%clk 0:01:41.5]} 27... Rxd1 {[%clk 0:04:03]} 28.
Nf3 {[%clk 0:01:40.1]} 28... c5 {[%clk 0:04:01.8]} 29. Nfg5 {[%clk 0:01:37.2]}
29... h6 {[%clk 0:04:00.5]} 30. Nf3 {[%clk 0:01:35.5]} 30... Bxe4 {[%clk
0:03:58.7]} 31. Nh4 {[%clk 0:01:33.1]} 31... Rd2 {[%clk 0:03:56.2]} 32. g4
{[%clk 0:01:27.9]} 32... g5 {[%clk 0:03:54.7]} 33. Ng6 {[%clk 0:01:14.2]} 33...
Rxg2+ {[%clk 0:03:52.8]} 34. Kh1 {[%clk 0:01:12.1]} 34... fxg6 {[%clk
0:03:52.7]} 35. h4 {[%clk 0:01:08]} 35... Rd8 {[%clk 0:03:52.6]} 36. hxg5 {[%clk
0:01:02.8]} 36... Rd1# {[%clk 0:03:52.5]} 0-1

[Event "Live Chess"]
[Site "Chess.com"]
[Date "2023.05.20"]
[Round "-"]
[White "nigelst"]
[Black "JanMur7"]
[Result "1/2-1/2"]
[WhiteElo "1852"]
[BlackElo "1974"]
[TimeControl "300"]
[EndTime "9:40:40 PDT"]
[Termination "Game drawn by repetition"]

1. e4 {[%clk 0:04:56.5]} 1... e5 {[%clk 0:04:58.1]} 2. Nf3 {[%clk 0:04:55.4]}
2... Nc6 {[%clk 0:04:56.5]} 3. Bb5 {[%clk 0:04:54.2]} 3... Nf6 {[%clk
0:04:55.1]} 4. O-O {[%clk 0:04:51.2]} 4... Nxe4 {[%clk 0:04:54]} 5. d4 {[%clk
0:04:49.7]} 5... Nd6 {[%clk 0:04:52.8]} 6. Bxc6 {[%clk 0:04:44.5]} 6... dxc6
{[%clk 0:04:52.7]} 7. dxe5 {[%clk 0:04:43.7]} 7... Nf5 {[%clk 0:04:51.9]} 8.
Qxd8+ {[%clk 0:04:42.3]} 8... Kxd8 {[%clk 0:04:51.8]} 9. Bg5+ {[%clk 0:04:38.5]}
9... Ke8 {[%clk 0:04:42.8]} 10. Rd1 {[%clk 0:04:35.4]} 10... Ne7 {[%clk
0:04:41.1]} 11. Nc3 {[%clk 0:04:32.8]} 11... Bf5 {[%clk 0:04:39.6]} 12. Rd2
{[%clk 0:04:30.5]} 12... Ng6 {[%clk 0:04:33.2]} 13. Rad1 {[%clk 0:04:28]} 13...
Be7 {[%clk 0:04:22.6]} 14. Bxe7 {[%clk 0:04:25.4]} 14... Kxe7 {[%clk 0:04:22.5]}
15. Nd4 {[%clk 0:04:19.3]} 15... Bc8 {[%clk 0:04:06.9]} 16. Nf3 {[%clk
0:04:00.8]} 16... Bf5 {[%clk 0:03:55.6]} 17. h3 {[%clk 0:03:40.7]} 17... h5
{[%clk 0:03:52.7]} 18. Nd4 {[%clk 0:03:31.8]} 18... Bc8 {[%clk 0:03:43.8]} 19.
Kh2 {[%clk 0:03:22.9]} 19... h4 {[%clk 0:03:33.6]} 20. Nf3 {[%clk 0:02:48.5]}
20... Be6 {[%clk 0:03:20.5]} 21. Ne4 {[%clk 0:02:39.3]} 21... Rad8 {[%clk
0:03:08.1]} 22. Rxd8 {[%clk 0:02:35.5]} 22... Rxd8 {[%clk 0:03:08]} 23. Rxd8
{[%clk 0:02:33.7]} 23... Kxd8 {[%clk 0:03:07.9]} 24. Nc5 {[%clk 0:02:31.3]}
24... Bc8 {[%clk 0:03:05.9]} 25. Kg1 {[%clk 0:02:22.6]} 25... b6 {[%clk
0:03:03]} 26. Nd3 {[%clk 0:02:19.1]} 26... Bf5 {[%clk 0:02:54.2]} 27. Nb4 {[%clk
0:02:04.8]} 27... Be4 {[%clk 0:02:33.4]} 28. Ng5 {[%clk 0:01:57.7]} 28... Bd5
{[%clk 0:02:19.1]} 29. Nxd5 {[%clk 0:01:55.4]} 29... cxd5 {[%clk 0:02:17.9]} 30.
Nf3 {[%clk 0:01:25]} 30... c5 {[%clk 0:02:11.2]} 31. Kf1 {[%clk 0:01:24]} 31...
Ke7 {[%clk 0:02:09.1]} 32. Ke2 {[%clk 0:01:23.1]} 32... Ke6 {[%clk 0:02:07.8]}
33. Ng5+ {[%clk 0:01:18.5]} 33... Ke7 {[%clk 0:01:57.4]} 34. Nf3 {[%clk
0:01:17.2]} 34... Nf4+ {[%clk 0:01:56.6]} 35. Kf1 {[%clk 0:01:15.2]} 35... Ng6
{[%clk 0:01:55.4]} 36. Ke2 {[%clk 0:01:13.3]} 1/2-1/2

[Event "Live Chess"]
[Site "Chess.com"]
[Date "2023.05.20"]
[Round "-"]
[White "ethanredball"]
[Black "OBrightwell100"]
[Result "0-1"]
[WhiteElo "660"]
[BlackElo "1330"]
[TimeControl "300"]
[EndTime "9:40:41 PDT"]
[Termination "OBrightwell100 won by checkmate"]

1. e4 {[%clk 0:04:58.4]} 1... e5 {[%clk 0:04:59.4]} 2. d4 {[%clk 0:04:56.2]}
2... exd4 {[%clk 0:04:57.8]} 3. Qxd4 {[%clk 0:04:55.1]} 3... Nc6 {[%clk
0:04:57.5]} 4. Qd1 {[%clk 0:04:53.5]} 4... Qh4 {[%clk 0:04:57.1]} 5. Nc3 {[%clk
0:04:52]} 5... Nf6 {[%clk 0:04:55.2]} 6. Qe2 {[%clk 0:04:47.9]} 6... Bb4 {[%clk
0:04:51.2]} 7. g3 {[%clk 0:04:36.9]} 7... Bxc3+ {[%clk 0:04:49.4]} 8. bxc3
{[%clk 0:04:34.1]} 8... Qxe4 {[%clk 0:04:49]} 9. Qxe4+ {[%clk 0:04:29.6]} 9...
Nxe4 {[%clk 0:04:48.9]} 10. Bg2 {[%clk 0:04:26.6]} 10... Nxc3 {[%clk 0:04:47.8]}
11. Bd2 {[%clk 0:04:24.5]} 11... Nd5 {[%clk 0:04:42.3]} 12. Bxd5 {[%clk
0:04:22.4]} 12... Ne7 {[%clk 0:04:40.5]} 13. Bf3 {[%clk 0:04:17.4]} 13... O-O
{[%clk 0:04:38.7]} 14. Bf4 {[%clk 0:04:14.8]} 14... d6 {[%clk 0:04:36.3]} 15.
Ne2 {[%clk 0:04:09.7]} 15... Nf5 {[%clk 0:04:35.2]} 16. O-O {[%clk 0:04:06.2]}
16... Re8 {[%clk 0:04:33]} 17. g4 {[%clk 0:04:03]} 17... Nh4 {[%clk 0:04:27.5]}
18. Rae1 {[%clk 0:03:42.7]} 18... Nxf3+ {[%clk 0:04:24.4]} 19. Kg2 {[%clk
0:03:41.5]} 19... Nxe1+ {[%clk 0:04:21.8]} 20. Rxe1 {[%clk 0:03:40.5]} 20...
Bxg4 {[%clk 0:04:19.5]} 21. Kf1 {[%clk 0:03:37.9]} 21... Bxe2+ {[%clk
0:04:17.3]} 22. Rxe2 {[%clk 0:03:36.6]} 22... Rxe2 {[%clk 0:04:16.4]} 23. Kxe2
{[%clk 0:03:35.2]} 23... Re8+ {[%clk 0:04:16.3]} 24. Kf3 {[%clk 0:03:33.5]}
24... Re6 {[%clk 0:04:11.5]} 25. Be3 {[%clk 0:03:31.5]} 25... Rf6+ {[%clk
0:04:07.6]} 26. Ke4 {[%clk 0:03:30]} 26... Re6+ {[%clk 0:04:05.3]} 27. Kd3
{[%clk 0:03:29.4]} 27... Rh6 {[%clk 0:04:03.8]} 28. Bxh6 {[%clk 0:03:27.4]}
28... gxh6 {[%clk 0:04:02.7]} 29. Kc4 {[%clk 0:03:27]} 29... Kg7 {[%clk
0:04:01.2]} 30. Kb5 {[%clk 0:03:26.1]} 30... Kf6 {[%clk 0:04:00]} 31. c4 {[%clk
0:03:25.7]} 31... Kf5 {[%clk 0:03:59.2]} 32. c5 {[%clk 0:03:25.6]} 32... dxc5
{[%clk 0:03:57.8]} 33. Kxc5 {[%clk 0:03:24.4]} 33... Kf4 {[%clk 0:03:53.6]} 34.
Kd5 {[%clk 0:03:23.2]} 34... Kf3 {[%clk 0:03:52.9]} 35. a4 {[%clk 0:03:21]}
35... Kxf2 {[%clk 0:03:52.2]} 36. Ke5 {[%clk 0:03:20.3]} 36... Kg2 {[%clk
0:03:50.1]} 37. Kf6 {[%clk 0:03:19.7]} 37... Kxh2 {[%clk 0:03:48]} 38. Kxf7
{[%clk 0:03:19.6]} 38... c5 {[%clk 0:03:47]} 39. Ke6 {[%clk 0:03:17.4]} 39... c4
{[%clk 0:03:46.9]} 40. Kd5 {[%clk 0:03:16.2]} 40... c3 {[%clk 0:03:46.8]} 41.
Kd4 {[%clk 0:03:16.1]} 41... c2 {[%clk 0:03:46.7]} 42. Kc3 {[%clk 0:03:15.7]}
42... c1=Q+ {[%clk 0:03:46]} 43. Kb3 {[%clk 0:03:14.5]} 43... Kg2 {[%clk
0:03:43.9]} 44. Kb4 {[%clk 0:03:13.7]} 44... Kf3 {[%clk 0:03:42.9]} 45. Kb5
{[%clk 0:03:13]} 45... Ke4 {[%clk 0:03:42.8]} 46. a5 {[%clk 0:03:12.1]} 46...
Qb1+ {[%clk 0:03:41.1]} 47. Kc5 {[%clk 0:03:10.4]} 47... Qc2+ {[%clk 0:03:40]}
48. Kb5 {[%clk 0:03:08.6]} 48... Qb3+ {[%clk 0:03:39.1]} 49. Kc5 {[%clk
0:03:07.8]} 49... Qd5+ {[%clk 0:03:37.1]} 50. Kb4 {[%clk 0:03:06.1]} 50... Qc6
{[%clk 0:03:34]} 51. Kb3 {[%clk 0:03:03.7]} 51... Qc5 {[%clk 0:03:33]} 52. Ka4
{[%clk 0:03:00.8]} 52... b5+ {[%clk 0:03:30]} 53. Kb3 {[%clk 0:02:59.1]} 53...
Qc4+ {[%clk 0:03:28.4]} 54. Ka3 {[%clk 0:02:57.6]} 54... b4+ {[%clk 0:03:26.4]}
55. Ka4 {[%clk 0:02:56.4]} 55... b3+ {[%clk 0:03:23.8]} 56. Ka3 {[%clk
0:02:54.9]} 56... Qc2 {[%clk 0:03:20.3]} 57. Kb4 {[%clk 0:02:53.3]} 57... b2
{[%clk 0:03:18.3]} 58. Kb5 {[%clk 0:02:52.4]} 58... b1=Q+ {[%clk 0:03:18.2]} 59.
Ka6 {[%clk 0:02:51.5]} 59... Qc6+ {[%clk 0:03:16.9]} 60. Kxa7 {[%clk 0:02:50.2]}
60... Qbb7# {[%clk 0:03:16.8]} 0-1

[Event "Live Chess"]
[Site "Chess.com"]
[Date "2023.05.20"]
[Round "-"]
[White "VovaOvchar1990"]
[Black "MrDodgy"]
[Result "0-1"]
[WhiteElo "1201"]
[BlackElo "2325"]
[TimeControl "300"]
[EndTime "9:40:46 PDT"]
[Termination "MrDodgy won on time"]

1. e4 {[%clk 0:04:58.4]} 1... c5 {[%clk 0:04:55.1]} 2. Bc4 {[%clk 0:04:55.4]}
2... e6 {[%clk 0:04:44.8]} 3. d4 {[%clk 0:04:52.9]} 3... cxd4 {[%clk 0:04:43.3]}
4. Qxd4 {[%clk 0:04:51.7]} 4... Nc6 {[%clk 0:04:42.7]} 5. Qd1 {[%clk 0:04:50.5]}
5... Nf6 {[%clk 0:04:41.3]} 6. Nc3 {[%clk 0:04:48.9]} 6... Bb4 {[%clk
0:04:39.5]} 7. Ne2 {[%clk 0:04:45.3]} 7... Nxe4 {[%clk 0:04:37.4]} 8. a3 {[%clk
0:04:39.2]} 8... Nxc3 {[%clk 0:04:28.7]} 9. Nxc3 {[%clk 0:04:37.4]} 9... Be7
{[%clk 0:04:25.6]} 10. O-O {[%clk 0:04:35.4]} 10... O-O {[%clk 0:04:23.2]} 11.
h3 {[%clk 0:04:34.2]} 11... d5 {[%clk 0:04:21.8]} 12. Be2 {[%clk 0:04:32.4]}
12... b6 {[%clk 0:04:09.5]} 13. Bf3 {[%clk 0:04:30.7]} 13... Bb7 {[%clk
0:04:07.4]} 14. Bf4 {[%clk 0:04:21.4]} 14... Rc8 {[%clk 0:04:01.8]} 15. Re1
{[%clk 0:04:17]} 15... Bf6 {[%clk 0:03:55.6]} 16. Nb5 {[%clk 0:03:58.5]} 16...
e5 {[%clk 0:03:45]} 17. Bg3 {[%clk 0:03:50.5]} 17... d4 {[%clk 0:03:39.4]} 18.
Bxc6 {[%clk 0:03:40.1]} 18... Bxc6 {[%clk 0:03:35]} 19. Nxa7 {[%clk 0:03:40]}
19... Qd5 {[%clk 0:03:27.9]} 20. f3 {[%clk 0:03:17.8]} 20... Rce8 {[%clk
0:02:59.8]} 21. c4 {[%clk 0:02:50.7]} 21... dxc3 {[%clk 0:02:52.8]} 22. Qxd5
{[%clk 0:02:47.3]} 22... Bxd5 {[%clk 0:02:52.7]} 23. bxc3 {[%clk 0:02:43.2]}
23... Re6 {[%clk 0:02:33]} 24. Nb5 {[%clk 0:02:31.2]} 24... Bc4 {[%clk 0:02:30]}
25. Nc7 {[%clk 0:02:22.6]} 25... Rc6 {[%clk 0:02:23.8]} 26. Bxe5 {[%clk
0:01:18.3]} 26... Bxe5 {[%clk 0:02:20.5]} 27. Rxe5 {[%clk 0:01:16]} 27... Rxc7
{[%clk 0:02:19.5]} 28. Rb1 {[%clk 0:01:10.8]} 28... b5 {[%clk 0:02:17.2]} 29.
Rb4 {[%clk 0:01:03.6]} 29... Ra8 {[%clk 0:02:12.6]} 30. Kh2 {[%clk 0:00:49.5]}
30... g6 {[%clk 0:02:08.9]} 31. g4 {[%clk 0:00:29.3]} 31... Rxa3 {[%clk
0:02:04.9]} 32. Kg3 {[%clk 0:00:28.8]} 32... Rxc3 {[%clk 0:02:03.6]} 33. h4
{[%clk 0:00:23.6]} 33... Rd7 {[%clk 0:02:00.9]} 34. Re4 {[%clk 0:00:15.2]} 34...
Rdd3 {[%clk 0:01:58.9]} 35. Re8+ {[%clk 0:00:05.1]} 35... Kg7 {[%clk 0:01:56.3]}
0-1

[Event "Live Chess"]
[Site "Chess.com"]
[Date "2023.05.20"]
[Round "-"]
[White "friarnator"]
[Black "Rusty_Bridges"]
[Result "1-0"]
[WhiteElo "1978"]
[BlackElo "1409"]
[TimeControl "300"]
[EndTime "9:40:51 PDT"]
[Termination "friarnator won by resignation"]

1. e4 {[%clk 0:04:56.7]} 1... d6 {[%clk 0:04:58.6]} 2. d4 {[%clk 0:04:55.5]}
2... Nf6 {[%clk 0:04:57.8]} 3. Nc3 {[%clk 0:04:54.2]} 3... Nbd7 {[%clk
0:04:54.9]} 4. Be2 {[%clk 0:04:53.2]} 4... e5 {[%clk 0:04:54.2]} 5. Be3 {[%clk
0:04:52.1]} 5... h6 {[%clk 0:04:51.8]} 6. h3 {[%clk 0:04:50.6]} 6... Be7 {[%clk
0:04:49.7]} 7. Nf3 {[%clk 0:04:49.8]} 7... c6 {[%clk 0:04:47.5]} 8. a4 {[%clk
0:04:46]} 8... Qc7 {[%clk 0:04:46.6]} 9. O-O {[%clk 0:04:44.5]} 9... g5 {[%clk
0:04:45.7]} 10. Nh2 {[%clk 0:04:37.7]} 10... Nf8 {[%clk 0:04:43.5]} 11. a5
{[%clk 0:04:34.4]} 11... Ng6 {[%clk 0:04:41.4]} 12. a6 {[%clk 0:04:33.5]} 12...
b6 {[%clk 0:04:39.7]} 13. d5 {[%clk 0:04:31.3]} 13... c5 {[%clk 0:04:38.5]} 14.
Bb5+ {[%clk 0:04:26.3]} 14... Kf8 {[%clk 0:04:36.2]} 15. Bc6 {[%clk 0:04:24.7]}
15... Rb8 {[%clk 0:04:34.9]} 16. Nb5 {[%clk 0:04:24]} 16... Qd8 {[%clk
0:04:26.4]} 17. Nxa7 {[%clk 0:04:23.3]} 17... Nf4 {[%clk 0:04:20.6]} 18. Nxc8
{[%clk 0:04:19.6]} 18... Qxc8 {[%clk 0:04:18.6]} 19. a7 {[%clk 0:04:18.4]} 19...
Ra8 {[%clk 0:04:16.1]} 20. Bxa8 {[%clk 0:04:17.1]} 20... Qxa8 {[%clk 0:04:15.2]}
21. Bxf4 {[%clk 0:04:16.1]} 21... gxf4 {[%clk 0:04:13.6]} 22. Ng4 {[%clk
0:04:15.3]} 22... Nxe4 {[%clk 0:04:11.8]} 23. Qd3 {[%clk 0:04:01.5]} 23... Ng5
{[%clk 0:03:57.2]} 24. Qb5 {[%clk 0:03:55.4]} 24... Qxa7 {[%clk 0:03:50.7]} 25.
Rxa7 {[%clk 0:03:52.7]} 1-0